bitfinex/quotes_BTCUSD_20240730
["timestamp","ask_amount","ask_price","bid_price","bid_amount"]
[1722329773477,1.65664642,66916.0,66915.0,0.02785972]
[1722329773923,1.66764642,66916.0,66915.0,0.02785972]
[1722329774342,1.64919196,66916.0,66915.0,0.02785972]
[1722329774549,1.60458576,66916.0,66915.0,0.02785972]
[1722329774786,1.64904836,66916.0,66915.0,0.02785972]
[1722329775367,1.51522767,66916.0,66915.0,0.02785972]
[1722329775706,1.51525148,66916.0,66915.0,0.02785972]
[1722329776761,1.52525148,66916.0,66915.0,0.02785972]
[1722329777027,1.51525148,66916.0,66915.0,0.02785972]
[1722329777752,1.51525148,66916.0,66915.0,0.02725715]
[1722329778408,2.00367791,66916.0,66915.0,0.02725715]
[1722329778949,1.88046961,66916.0,66915.0,0.02725715]
[1722329779179,2.00158626,66916.0,66915.0,0.02725715]
[1722329780290,2.13526882,66916.0,66915.0,0.02725715]
[1722329780504,1.98158626,66916.0,66915.0,0.02725715]
[1722329780919,2.01116393,66916.0,66915.0,0.02725715]
[1722329781113,2.13218578,66916.0,66915.0,0.02725715]
[1722329781530,2.15218578,66916.0,66915.0,0.02725715]
[1722329782118,2.13218578,66916.0,66915.0,0.02725715]
[1722329782317,2.05435521,66916.0,66915.0,0.02725715]
[1722329782520,2.13218524,66916.0,66915.0,0.02725715]
[1722329782961,2.134515,66916.0,66915.0,0.02725715]
[1722329783806,2.154515,66916.0,66915.0,0.02725715]
[1722329784209,2.144515,66916.0,66915.0,0.02725715]
[1722329784383,2.134515,66916.0,66915.0,0.02725715]
[1722329784771,2.13380119,66916.0,66915.0,0.02725715]
[1722329785169,2.15380119,66916.0,66915.0,0.02725715]
[1722329785370,2.13380119,66916.0,66915.0,0.02725715]
[1722329785597,2.15380119,66916.0,66915.0,0.02725715]
[1722329786021,2.17725726,66916.0,66915.0,0.02725715]
[1722329786802,2.15725726,66916.0,66915.0,0.02725715]
[1722329787006,2.17725726,66916.0,66915.0,0.02725715]
[1722329788267,2.17725726,66916.0,66915.0,0.00520919]
[1722329788415,2.17725726,66916.0,66911.0,0.009251]
[1722329788416,1.49345,66912.0,66911.0,0.009251]
[1722329788597,1.67941454,66912.0,66911.0,0.009251]
[1722329788797,1.67941454,66912.0,66902.0,0.009251]
[1722329788798,1.04629,66903.0,66902.0,0.009251]
[1722329789028,1.36583904,66903.0,66902.0,0.009251]
[1722329789228,1.31041207,66903.0,66902.0,0.009251]
[1722329789612,1.39960078,66903.0,66902.0,0.009251]
[1722329789815,1.31041207,66903.0,66902.0,0.009251]
[1722329790073,1.52103739,66903.0,66902.0,0.009251]
[1722329790392,1.54449613,66903.0,66902.0,0.009251]
[1722329791221,1.65596707,66903.0,66902.0,0.009251]
[1722329791421,1.54549613,66903.0,66902.0,0.009251]
[1722329791946,1.55149613,66903.0,66902.0,0.009251]
[1722329792423,1.55206417,66903.0,66902.0,0.009251]
[1722329792605,1.65035832,66903.0,66902.0,0.009251]
[1722329792809,1.5107176,66903.0,66902.0,0.009251]
[1722329793016,1.64434756,66903.0,66902.0,0.009251]
[1722329793369,1.64334756,66903.0,66902.0,0.009251]
[1722329793572,2.08818756,66903.0,66902.0,0.009251]
[1722329793783,2.00803614,66903.0,66902.0,0.009251]
[1722329793966,2.11947542,66903.0,66902.0,0.009251]
[1722329794202,2.12147542,66903.0,66902.0,0.009251]
[1722329794403,2.11249372,66903.0,66902.0,0.009251]
[1722329794629,2.11249372,66903.0,66900.0,0.058243]
[1722329794630,1.41897,66901.0,66900.0,0.058243]
[1722329794836,1.82345241,66901.0,66900.0,0.058243]
[1722329795249,1.84645241,66901.0,66900.0,0.058243]
[1722329795650,1.72208929,66901.0,66900.0,0.058243]
[1722329795855,1.84771377,66901.0,66900.0,0.058243]
[1722329796005,2.16171377,66901.0,66900.0,0.058243]
[1722329796213,2.16171377,66901.0,66900.0,0.00216828]
[1722329796420,2.46066277,66901.0,66900.0,0.00216828]
[1722329796674,2.46066277,66901.0,66900.0,1e-08]
[1722329796824,2.16171377,66901.0,66900.0,1e-08]
[1722329797392,2.35141377,66901.0,66900.0,1e-08]
[1722329797724,2.67382522,66901.0,66900.0,1e-08]
[1722329797921,1.355428,66893.0,66892.0,0.009251]
[1722329798136,1.69844429,66893.0,66892.0,0.009251]
[1722329798334,1.6093588,66893.0,66892.0,0.009251]
[1722329798515,1.69842548,66893.0,66892.0,0.009251]
[1722329798955,1.60968304,66893.0,66892.0,0.009251]
[1722329799164,1.67116987,66893.0,66892.0,0.009251]
[1722329799360,1.77123118,66893.0,66892.0,0.009251]
[1722329799561,1.31366035,66893.0,66892.0,0.009251]
[1722329799761,1.32367425,66893.0,66892.0,0.009251]
[1722329800020,1.37394721,66893.0,66892.0,0.009251]
[1722329800157,1.28259904,66893.0,66892.0,0.009251]
[1722329800380,1.73284143,66893.0,66892.0,0.009251]
[1722329800779,1.86353575,66893.0,66892.0,0.009251]
[1722329800982,1.56455175,66893.0,66892.0,0.009251]
[1722329801187,0.17221343,66893.0,66892.0,0.148751]
[1722329801388,0.25610902,66893.0,66892.0,0.1561295]
[1722329801592,0.85407702,66893.0,66892.0,0.0916295]
[1722329801983,1.30426102,66893.0,66892.0,0.0166295]
[1722329802185,1.77393934,66893.0,66892.0,0.009251]
[1722329802386,1.7743417,66893.0,66892.0,0.009251]
[1722329802559,1.88568633,66893.0,66892.0,0.009251]
[1722329802760,1.72760166,66893.0,66892.0,0.009251]
[1722329802937,1.88522458,66893.0,66892.0,0.009251]
[1722329803142,1.87387994,66893.0,66892.0,0.009251]
[1722329804108,1.87387994,66893.0,66880.0,0.0751]
[1722329804109,1.046633,66881.0,66880.0,0.0751]
[1722329804287,0.9169407,66881.0,66880.0,0.0751]
[1722329804696,0.61754106,66881.0,66880.0,0.0751]
[1722329804893,0.87066242,66881.0,66880.0,0.0751]
[1722329805142,0.87066242,66881.0,66880.0,0.082572]
[1722329805347,0.1,66881.0,66880.0,0.293721]
[1722329805556,0.27558642,66881.0,66880.0,0.1442]
[1722329805744,0.57462442,66881.0,66880.0,0.151672]
[1722329805947,0.59809008,66881.0,66880.0,0.151672]
[1722329806283,0.87366242,66881.0,66880.0,0.1442]
[1722329806685,0.27558642,66881.0,66880.0,0.1442]
[1722329807015,0.87366242,66881.0,66880.0,0.1442]
[1722329807215,0.87366242,66881.0,66880.0,0.151672]
[1722329807367,0.87366242,66881.0,66880.0,0.1442]
[1722329807586,0.96194091,66881.0,66880.0,0.1442]
[1722329808164,1.25797891,66881.0,66880.0,0.14416]
[1722329808366,0.87066242,66881.0,66880.0,0.14416]
[1722329808572,0.87666242,66881.0,66880.0,0.14416]
[1722329808770,0.57162442,66881.0,66880.0,0.14416]
[1722329809181,0.60108991,66881.0,66880.0,0.151632]
[1722329809586,0.30205191,66881.0,66880.0,0.151632]
[1722329810025,0.29605191,66881.0,66880.0,0.151632]
[1722329810233,0.57162442,66881.0,66880.0,0.151632]
[1722329810431,0.27258642,66881.0,66880.0,0.151632]
[1722329810919,0.95863841,66881.0,66880.0,0.151632]
[1722329811342,0.448584,66877.0,66876.0,0.069651]
[1722329811662,0.87115458,66877.0,66876.0,0.069651]
[1722329811908,0.87115458,66877.0,66876.0,0.150351]
[1722329812059,0.97867989,66877.0,66876.0,0.150351]
[1722329812264,0.97867989,66877.0,66876.0,0.016723]
[1722329812461,1.27773589,66877.0,66876.0,0.009251]
[1722329812639,1.32351552,66877.0,66876.0,0.009251]
[1722329812839,1.27773589,66877.0,66876.0,0.009251]
[1722329813041,1.02445788,66877.0,66876.0,0.009251]
[1722329813270,1.32351388,66877.0,66876.0,0.009251]
[1722329813466,1.02445788,66877.0,66876.0,0.009251]
[1722329813678,1.36998076,66877.0,66876.0,0.009251]
[1722329813880,1.05645788,66877.0,66876.0,0.009251]
[1722329814033,1.35551388,66877.0,66876.0,0.009251]
[1722329815397,1.34651388,66877.0,66876.0,0.009251]
[1722329815580,1.30373589,66877.0,66876.0,0.009251]
[1722329815778,1.36179267,66877.0,66876.0,0.009251]
[1722329815975,1.35879267,66877.0,66876.0,0.009251]
[1722329816387,1.36479267,66877.0,66876.0,0.009251]
[1722329816712,1.43162431,66877.0,66876.0,0.009251]
[1722329817090,0.63615536,66877.0,66876.0,0.009251]
[1722329817303,0.20503958,66877.0,66876.0,0.08459816]
[1722329817525,0.10503958,66877.0,66876.0,0.23412816]
[1722329817777,0.0589828,66877.0,66876.0,0.24164048]
[1722329817977,0.03551458,66877.0,66876.0,0.09211048]
[1722329818088,0.03551458,66877.0,66876.0,0.24164048]
[1722329818294,0.03551458,66877.0,66876.0,0.09211048]
[1722329818515,0.02351458,66877.0,66876.0,0.24164048]
[1722329818793,0.03751458,66877.0,66876.0,0.09211048]
[1722329819015,0.03751458,66877.0,66876.0,0.24164048]
[1722329819281,0.02351458,66877.0,66876.0,0.24164048]
[1722329819462,0.04351458,66877.0,66876.0,0.09211048]
[1722329819883,0.10272204,66877.0,66876.0,0.09211048]
[1722329820037,0.19472204,66877.0,66876.0,0.09211048]
[1722329820647,0.18152688,66877.0,66876.0,0.09211048]
[1722329821067,0.21099331,66877.0,66876.0,0.09211048]
[1722329821267,0.16498101,66877.0,66876.0,0.09211048]
[1722329821504,0.18752848,66877.0,66876.0,0.09211048]
[1722329821714,0.08752848,66877.0,66876.0,0.24164048]
[1722329821866,0.20512323,66877.0,66876.0,0.24164048]
[1722329822060,0.18709717,66877.0,66876.0,0.24164048]
[1722329822374,0.18709717,66877.0,66876.0,0.09211048]
[1722329822865,0.08709717,66877.0,66876.0,0.09211048]
[1722329823074,0.06358259,66877.0,66876.0,0.98356048]
[1722329823478,0.06358259,66877.0,66876.0,0.68450048]
[1722329823681,0.08709717,66877.0,66876.0,0.23591048]
[1722329823891,0.12571129,66877.0,66876.0,0.23591048]
[1722329824096,0.21971129,66877.0,66876.0,0.23591048]
[1722329824303,0.22171129,66877.0,66876.0,0.23591048]
[1722329824509,0.22103322,66877.0,66876.0,0.23591048]
[1722329825110,0.1824191,66877.0,66876.0,0.23591048]
[1722329825314,0.1704191,66877.0,66876.0,0.23591048]
[1722329825833,0.1784191,66877.0,66876.0,0.23591048]
[1722329826036,0.10188548,66877.0,66876.0,0.23591048]
[1722329826271,0.20188548,66877.0,66876.0,0.23591048]
[1722329826415,0.29005643,66877.0,66876.0,0.23591048]
[1722329826616,1.03769643,66877.0,66876.0,0.17311048]
[1722329826833,0.73864043,66877.0,66876.0,0.08459816]
[1722329827302,1.03769643,66877.0,66876.0,0.08459816]
[1722329827839,0.99279191,66877.0,66876.0,0.08459816]
[1722329828037,1.03790052,66877.0,66876.0,0.08459816]
[1722329828681,0.73884452,66877.0,66876.0,0.08459816]
[1722329828902,0.76231169,66877.0,66876.0,0.08459816]
[1722329829105,0.76231169,66877.0,66876.0,0.09210977]
[1722329829304,0.65067436,66877.0,66876.0,0.09210977]
[1722329830209,0.94973036,66877.0,66876.0,0.08459816]
[1722329830411,0.65067436,66877.0,66876.0,0.08459816]
[1722329830628,0.71758191,66877.0,66876.0,0.08459816]
[1722329830823,1.01663791,66877.0,66876.0,0.08459816]
[1722329831046,1.16733223,66877.0,66876.0,0.08459816]
[1722329831262,1.16728214,66877.0,66876.0,0.08459816]
[1722329831431,1.10034956,66877.0,66876.0,0.08459816]
[1722329831864,0.80136696,66877.0,66876.0,0.08459816]
[1722329832040,0.65067264,66877.0,66876.0,0.08459816]
[1722329832240,0.73993576,66877.0,66876.0,0.08459816]
[1722329833390,0.76225154,66877.0,66876.0,0.08459816]
[1722329833596,0.76225154,66877.0,66876.0,0.09210977]
[1722329833597,0.60556575,66877.0,66876.0,0.09210977]
[1722329833797,1.15746071,66877.0,66876.0,0.08459816]
[1722329834427,1.1896218,66877.0,66876.0,0.08459816]
[1722329834616,1.18962199,66877.0,66876.0,0.08459816]
[1722329836336,1.21308918,66877.0,66876.0,0.08459816]
[1722329836757,1.51214518,66877.0,66876.0,0.08459816]
[1722329837167,1.64615745,66877.0,66876.0,0.08459816]
[1722329837367,1.48867799,66877.0,66876.0,0.08459816]
[1722329838092,1.49770941,66877.0,66876.0,0.08459816]
[1722329839383,1.55766341,66877.0,66876.0,0.08459816]
[1722329839579,1.13824174,66877.0,66876.0,0.08459816]
[1722329839905,0.63543174,66877.0,66876.0,0.08459816]
[1722329840304,0.93448774,66877.0,66876.0,0.09213561]
[1722329840647,0.93448774,66877.0,66876.0,0.08459816]
[1722329840848,0.95795545,66877.0,66876.0,0.08459816]
[1722329841049,1.10603046,66877.0,66876.0,0.08459816]
[1722329841609,1.06043385,66877.0,66876.0,0.08459816]
[1722329841811,1.10593323,66877.0,66876.0,0.08459816]
[1722329842188,1.24523323,66877.0,66876.0,0.08459816]
[1722329844083,1.64701852,66877.0,66876.0,0.009251]
[1722329844288,1.65701852,66877.0,66876.0,0.009251]
[1722329844511,1.6467395,66877.0,66876.0,0.009251]
[1722329845153,1.57117598,66877.0,66876.0,0.009251]
[1722329845350,1.31852241,66877.0,66876.0,0.009251]
[1722329846283,1.25792241,66877.0,66876.0,0.009251]
[1722329847491,1.21270971,66877.0,66876.0,0.009251]
[1722329847705,1.4876182,66877.0,66876.0,0.009251]
[1722329847898,1.55912706,66877.0,66876.0,0.009251]
[1722329848165,1.55911827,66877.0,66876.0,0.009251]
[1722329848498,1.48787862,66877.0,66876.0,0.009251]
[1722329848740,0.9584283,66877.0,66876.0,0.009251]
[1722329849124,0.9584283,66877.0,66876.0,0.08459816]
[1722329849324,1.23401659,66877.0,66876.0,0.08459816]
[1722329849544,1.23401659,66877.0,66876.0,0.009251]
[1722329849545,1.4557097,66877.0,66876.0,0.009251]
[1722329849741,1.4787097,66877.0,66876.0,0.009251]
[1722329850059,1.62940402,66877.0,66876.0,0.009251]
[1722329850262,1.79032925,66877.0,66876.0,0.009251]
[1722329850465,1.62940402,66877.0,66876.0,0.009251]
[1722329850623,1.61940402,66877.0,66876.0,0.009251]
[1722329850824,1.91846002,66877.0,66876.0,0.009251]
[1722329851187,1.93646002,66877.0,66876.0,0.009251]
[1722329851388,2.08618176,66877.0,66876.0,0.009251]
[1722329851590,1.93526781,66877.0,66876.0,0.009251]
[1722329851794,1.94526781,66877.0,66876.0,0.009251]
[1722329851948,1.64621181,66877.0,66876.0,0.009251]
[1722329852160,1.63621181,66877.0,66876.0,0.009251]
[1722329852553,1.93526781,66877.0,66876.0,0.009251]
[1722329853535,1.94526781,66877.0,66876.0,0.009251]
[1722329853912,1.93526781,66877.0,66876.0,0.009251]
[1722329855065,1.63621181,66877.0,66876.0,0.009251]
[1722329855823,1.95873758,66877.0,66876.0,0.009251]
[1722329857352,1.91276209,66877.0,66876.0,0.009251]
[1722329857550,1.73719333,66877.0,66876.0,0.009251]
[1722329857751,1.63402356,66877.0,66876.0,0.009251]
[1722329858407,1.48332924,66877.0,66876.0,0.009251]
[1722329858610,1.02167324,66877.0,66876.0,0.009251]
[1722329858809,0.94265123,66877.0,66876.0,0.009251]
[1722329859077,1.15344164,66877.0,66876.0,0.009251]
[1722329859252,0.94265123,66877.0,66876.0,0.009251]
[1722329859427,0.19501123,66877.0,66876.0,0.156151]
[1722329859642,0.64359523,66877.0,66876.0,0.156151]
[1722329859836,0.19501123,66877.0,66876.0,0.156151]
[1722329860033,0.34453923,66877.0,66876.0,0.16335006]
[1722329860240,0.24453923,66877.0,66876.0,0.16335006]
[1722329860465,0.64359523,66877.0,66876.0,0.16335006]
[1722329860794,0.64496784,66877.0,66876.0,0.16335006]
[1722329861211,0.6683323,66877.0,66876.0,0.16335006]
[1722329862065,0.9673883,66877.0,66876.0,0.009251]
[1722329862884,0.96740735,66877.0,66876.0,0.009251]
[1722329863051,1.11810167,66877.0,66876.0,0.009251]
[1722329864607,0.96740735,66877.0,66876.0,0.009251]
[1722329865189,0.66835135,66877.0,66876.0,0.009251]
[1722329865596,0.66835135,66877.0,66876.0,0.01643743]
[1722329866226,0.64488307,66877.0,66876.0,0.01643743]
[1722329867183,0.59913,66877.0,66876.0,0.01643743]
[1722329867333,0.64499401,66877.0,66876.0,0.009251]
[1722329869386,0.66846242,66877.0,66876.0,0.009251]
[1722329869740,0.62259841,66877.0,66876.0,0.009251]
[1722329869970,0.36945689,66877.0,66876.0,0.009251]
[1722329870200,0.66851289,66877.0,66876.0,0.009251]
[1722329870402,0.66851289,66877.0,66876.0,0.01642183]
[1722329870594,0.62259841,66877.0,66876.0,0.009251]
[1722329870799,0.3459889,66877.0,66876.0,0.009251]
[1722329871027,0.3459889,66877.0,66876.0,0.303981]
[1722329871033,0.18742948,66877.0,66876.0,0.303981]
[1722329871145,0.14151458,66877.0,66876.0,0.154451]
[1722329871352,0.14151458,66877.0,66876.0,0.31115183]
[1722329871353,0.18748442,66877.0,66876.0,0.31115183]
[1722329871792,0.16396984,66877.0,66876.0,0.31115183]
[1722329872024,0.10746128,66877.0,66876.0,0.61021183]
[1722329872726,0.10746128,66877.0,66876.0,0.90927183]
[1722329872937,0.00083,66880.0,66876.0,0.90927183]
[1722329872938,0.00083,66880.0,66879.0,0.299047]
[1722329873104,0.06791715,66880.0,66879.0,0.893217]
[1722329873480,0.00083,66880.0,66879.0,1.24250569]
[1722329873876,0.00083,66880.0,66879.0,1.54155269]
[1722329874149,0.02429316,66880.0,66879.0,1.54155269]
[1722329874373,0.02529316,66880.0,66879.0,1.54255269]
[1722329874710,0.02529316,66880.0,66879.0,1.54455269]
[1722329875243,0.00183,66880.0,66879.0,1.54455269]
[1722329875454,0.00183,66880.0,66879.0,1.20242201]
[1722329876067,0.00083,66880.0,66879.0,1.20142201]
[1722329876396,0.00083,66880.0,66879.0,1.20942201]
[1722329876397,0.00183,66880.0,66879.0,1.20942201]
[1722329876929,0.00083,66880.0,66879.0,1.19942201]
[1722329877125,0.00283,66880.0,66879.0,1.21442201]
[1722329877349,0.00183,66880.0,66879.0,1.20942201]
[1722329877780,0.00283,66880.0,66879.0,1.21442201]
[1722329878332,0.02629184,66880.0,66879.0,1.21442201]
[1722329879611,0.00283,66880.0,66879.0,1.21442201]
[1722329883644,0.00218606,66880.0,66879.0,1.21442201]
[1722329884248,0.00218606,66880.0,66879.0,1.36511633]
[1722329885061,0.00218606,66880.0,66879.0,1.21442201]
[1722329886143,0.00218606,66880.0,66879.0,1.21533501]
[1722329887362,0.02564834,66880.0,66879.0,1.21533501]
[1722329887928,0.00218606,66880.0,66879.0,1.21533501]
[1722329889445,0.00218606,66880.0,66879.0,1.51438201]
[1722329889651,0.00218606,66880.0,66879.0,1.84570937]
[1722329890041,0.00218606,66880.0,66879.0,0.83318801]
[1722329890264,0.00218606,66880.0,66879.0,0.76968801]
[1722329891439,0.02564815,66880.0,66879.0,1.06873501]
[1722329891570,0.02564815,66880.0,66879.0,0.84968801]
[1722329891776,0.00218606,66880.0,66879.0,1.14873501]
[1722329892188,0.00218606,66880.0,66879.0,0.84968801]
[1722329894022,0.00218606,66880.0,66879.0,0.02307101]
[1722329894242,0.00218606,66880.0,66879.0,0.17259401]
[1722329894448,0.00218606,66880.0,66879.0,0.02307101]
[1722329895003,0.00218606,66880.0,66879.0,0.47164101]
[1722329895764,0.00218606,66880.0,66879.0,0.17259401]
[1722329895965,0.00218606,66880.0,66879.0,0.47164101]
[1722329896197,0.00218606,66880.0,66879.0,0.17259401]
[1722329896517,0.00218606,66880.0,66879.0,0.02307101]
[1722329896936,0.06838606,66880.0,66879.0,0.02307101]
[1722329897191,0.21690706,66880.0,66879.0,0.01307101]
[1722329897389,0.21790706,66880.0,66879.0,0.02307101]
[1722329897497,0.21690706,66880.0,66879.0,0.01807101]
[1722329897997,0.06838606,66880.0,66879.0,0.02307101]
[1722329898846,0.06942605,66880.0,66879.0,0.02307101]
[1722329899240,0.06838606,66880.0,66879.0,0.02307101]
[1722329899645,0.00218606,66880.0,66879.0,0.17259401]
[1722329899847,0.02565033,66880.0,66879.0,0.24959401]
[1722329900071,0.02565033,66880.0,66879.0,0.84768801]
[1722329900278,0.00218606,66880.0,66879.0,0.54864101]
[1722329900449,0.02536527,66880.0,66879.0,0.02307101]
[1722329900996,0.17488627,66880.0,66879.0,0.02307101]
[1722329901380,0.17592626,66880.0,66879.0,0.02307101]
[1722329901783,0.17488627,66880.0,66879.0,0.02307101]
[1722329902002,0.25078627,66880.0,66879.0,0.02307101]
[1722329902190,0.31158627,66880.0,66879.0,0.02307101]
[1722329903557,0.33505056,66880.0,66879.0,0.02307101]
[1722329904801,0.16206527,66880.0,66879.0,0.02307101]
[1722329905152,0.16310526,66880.0,66879.0,0.02307101]
[1722329905581,0.08616527,66880.0,66879.0,0.47164101]
[1722329905788,0.02536527,66880.0,66879.0,0.17259401]
[1722329906027,0.00218606,66880.0,66879.0,0.54814101]
[1722329906382,0.00218606,66880.0,66879.0,1.14623501]
[1722329906984,0.00218606,66880.0,66879.0,0.84718801]
[1722329907504,0.00218606,66880.0,66879.0,1.14623501]
[1722329908030,0.02564877,66880.0,66879.0,1.14623501]
[1722329908444,0.00218606,66880.0,66879.0,1.14623501]
[1722329912685,0.00218606,66880.0,66879.0,1.51008201]
[1722329912887,0.02564787,66880.0,66879.0,1.51008201]
[1722329913287,0.00218606,66880.0,66879.0,1.63435579]
[1722329913566,0.00218606,66880.0,66879.0,1.51008201]
[1722329914065,0.00118606,66880.0,66879.0,1.50008201]
[1722329915020,0.00118606,66880.0,66879.0,1.49508201]
[1722329915021,0.00018606,66880.0,66879.0,1.49508201]
[1722329915229,0.00118606,66880.0,66879.0,1.50608201]
[1722329915607,0.02464751,66880.0,66879.0,1.50608201]
[1722329915977,0.02564751,66880.0,66879.0,1.52008201]
[1722329916782,0.00218606,66880.0,66879.0,1.52008201]
[1722329916977,0.00218606,66880.0,66879.0,1.67077633]
[1722329917232,0.00218606,66880.0,66879.0,1.22103501]
[1722329920198,0.02564772,66880.0,66879.0,1.22103501]
[1722329920391,0.00218606,66880.0,66879.0,1.22103501]
[1722329921353,0.00218606,66880.0,66879.0,1.15623501]
[1722329922385,0.00218606,66880.0,66879.0,1.07973501]
[1722329923357,0.00218606,66880.0,66879.0,0.78068801]
[1722329923574,0.02564812,66880.0,66879.0,0.78068801]
[1722329924230,0.02564812,66880.0,66879.0,0.48164101]
[1722329924231,0.10744812,66880.0,66879.0,0.48164101]
[1722329924788,0.10744812,66880.0,66879.0,0.78068801]
[1722329924963,0.10744812,66880.0,66879.0,0.48164101]
[1722329926143,0.10744812,66880.0,66879.0,0.18259401]
[1722329926373,0.10744812,66880.0,66879.0,0.48164101]
[1722329927791,0.02564812,66880.0,66879.0,0.48164101]
[1722329927995,0.02564812,66880.0,66879.0,0.18259401]
[1722329928340,0.02564812,66880.0,66879.0,0.03307101]
[1722329928550,0.08844812,66880.0,66879.0,0.18259401]
[1722329931760,0.08844812,66880.0,66879.0,0.03307101]
[1722329932126,0.08844812,66880.0,66879.0,0.18259401]
[1722329932385,0.08844812,66880.0,66879.0,0.48164101]
[1722329932699,0.02564812,66880.0,66879.0,0.85748801]
[1722329932933,0.02564812,66880.0,66879.0,1.52138201]
[1722329933070,0.02564812,66880.0,66879.0,1.64565599]
[1722329933270,0.02564812,66880.0,66879.0,1.42320596]
[1722329933496,0.00218606,66880.0,66879.0,1.42320596]
[1722329934695,0.00218606,66880.0,66879.0,1.43320596]
[1722329934914,0.00218606,66880.0,66879.0,1.43520596]
[1722329935107,0.00218606,66880.0,66879.0,1.73425296]
[1722329935312,0.14798606,66880.0,66879.0,0.90495896]
[1722329935536,0.14798606,66880.0,66879.0,0.78068801]
[1722329935739,0.14798606,66880.0,66879.0,1.07973501]
[1722329935944,0.14798606,66880.0,66879.0,0.78068801]
[1722329939073,0.17144759,66880.0,66879.0,0.78068801]
[1722329939959,0.17144759,66880.0,66879.0,1.07973501]
[1722329940699,0.14798606,66880.0,66879.0,1.09659947]
[1722329941260,0.14798606,66880.0,66879.0,1.07973501]
[1722329942046,0.00218606,66880.0,66879.0,1.07973501]
[1722329942758,0.00218606,66880.0,66879.0,1.28571026]
[1722329942958,0.00218606,66880.0,66879.0,1.28571028]
[1722329943300,0.00218606,66880.0,66879.0,1.16143501]
[1722329943718,0.0256472,66880.0,66879.0,1.16143501]
[1722329944123,0.00218606,66880.0,66879.0,1.16143501]
[1722329945057,0.00218606,66880.0,66879.0,1.28568595]
[1722329945242,0.00218606,66880.0,66879.0,1.40996258]
[1722329945887,0.00218606,66880.0,66879.0,1.28571164]
[1722329947185,0.02564686,66880.0,66879.0,1.28571164]
[1722329947947,0.02564686,66880.0,66879.0,1.58475864]
[1722329948175,0.02564686,66880.0,66879.0,1.65815864]
[1722329948325,0.02564686,66880.0,66879.0,1.64815032]
[1722329948523,0.00218606,66880.0,66879.0,1.80884431]
[1722329948728,0.00218606,66880.0,66879.0,1.81084431]
[1722329949195,0.00218606,66880.0,66879.0,1.79884431]
[1722329950258,0.00218606,66880.0,66879.0,1.64814999]
[1722329950476,0.00218606,66880.0,66879.0,1.86076303]
[1722329951076,0.00218606,66880.0,66879.0,2.15981003]
[1722329951283,0.00118606,66880.0,66879.0,2.14581003]
[1722329951454,0.00118606,66880.0,66879.0,1.84676303]
[1722329951672,0.00118606,66880.0,66879.0,2.14880573]
[1722329951839,0.00218606,66880.0,66879.0,2.31050005]
[1722329952046,0.00218606,66880.0,66879.0,2.18623637]
[1722329952241,0.00218606,66880.0,66879.0,2.31049701]
[1722329952809,0.00218606,66880.0,66879.0,2.01145001]
[1722329952981,0.00218606,66880.0,66879.0,2.31049701]
[1722329953186,0.02564551,66880.0,66879.0,2.31049701]
[1722329954154,0.02564551,66880.0,66879.0,2.33349701]
[1722329954510,0.00083,66892.0,66891.0,1.824141]
[1722329954848,0.00083,66892.0,66891.0,2.2783935]
[1722329954994,0.00083,66892.0,66891.0,2.2763935]
[1722329955201,0.00083,66892.0,66891.0,2.2563935]
[1722329955404,0.00083,66892.0,66891.0,2.2783935]
[1722329955633,0.00083,66892.0,66891.0,2.2563935]
[1722329956303,0.00083,66892.0,66891.0,2.2763935]
[1722329956710,0.00083,66892.0,66891.0,2.2903935]
[1722329956913,0.00083,66892.0,66891.0,2.2923935]
[1722329957742,0.00083,66892.0,66891.0,2.3063935]
[1722329958114,0.00083,66892.0,66891.0,2.306388]
[1722329958307,0.00083,66892.0,66891.0,2.329388]
[1722329958753,0.00083,66892.0,66891.0,2.429388]
[1722329958982,0.00083,66892.0,66891.0,2.415388]
[1722329959433,0.00083,66892.0,66891.0,2.429388]
[1722329959669,0.00083,66892.0,66891.0,2.728381]
[1722329959915,0.00083,66892.0,66891.0,2.714381]
[1722329960234,0.00083,66892.0,66891.0,2.728381]
[1722329960828,0.00083,66892.0,66891.0,2.714381]
[1722329961035,0.0242832,66892.0,66891.0,2.714381]
[1722329961189,0.0242832,66892.0,66891.0,2.728381]
[1722329961406,0.0242832,66892.0,66891.0,2.72837112]
[1722329961801,0.0242832,66892.0,66891.0,2.72836249]
[1722329962201,2e-07,66892.0,66891.0,2.88596249]
[1722329962637,0.0030542,66913.0,66912.0,1.34505]
[1722329962836,0.0015,66913.0,66912.0,1.43251851]
[1722329963068,0.0015,66913.0,66912.0,1.43915922]
[1722329963825,0.0015,66913.0,66912.0,1.51785922]
[1722329963975,0.0015,66913.0,66912.0,1.52785922]
[1722329964179,0.0015,66913.0,66912.0,1.44915922]
[1722329965383,0.0015,66913.0,66912.0,1.05279071]
[1722329965923,0.0015,66913.0,66912.0,1.05679071]
[1722329966160,0.0015,66913.0,66912.0,1.05279071]
[1722329966532,0.0015,66913.0,66912.0,1.05879071]
[1722329967551,0.0015,66913.0,66912.0,1.06979071]
[1722329969319,0.0015,66913.0,66912.0,2.25812375]
[1722329969495,0.0015,66913.0,66912.0,2.31110375]
[1722329969645,0.0015,66913.0,66912.0,1.94490018]
[1722329969853,0.0015,66913.0,66912.0,1.79770375]
[1722329970429,0.0015,66913.0,66912.0,1.78070375]
[1722329970867,0.0015,66913.0,66912.0,1.80870375]
[1722329971367,0.0015,66913.0,66912.0,1.94539807]
[1722329971640,0.0015,66913.0,66912.0,1.95939807]
[1722329972039,0.0015,66913.0,66912.0,1.80699807]
[1722329972556,0.0015,66913.0,66912.0,1.67030375]
[1722329975001,0.02494821,66913.0,66912.0,1.67030375]
[1722329975222,0.0015,66913.0,66912.0,1.67030375]
[1722329976980,0.02494821,66913.0,66912.0,1.67030375]
[1722329977485,0.0015,66913.0,66912.0,1.67030375]
[1722329977731,0.0015,66913.0,66912.0,1.82099807]
[1722329979501,0.0015,66913.0,66912.0,1.9452004]
[1722329979706,0.0015,66913.0,66912.0,1.82099807]
[1722329980074,0.02494821,66913.0,66912.0,1.82099807]
[1722329980483,0.02494821,66913.0,66912.0,1.94520062]
[1722329981122,0.02494821,66913.0,66912.0,1.82099807]
[1722329981313,0.02494821,66913.0,66912.0,1.94520008]
[1722329981536,0.02494821,66913.0,66912.0,1.83099807]
[1722329981746,0.02494821,66913.0,66912.0,1.95520008]
[1722329981953,0.02494821,66913.0,66912.0,1.94520008]
[1722329983415,0.02577821,66913.0,66912.0,1.94520008]
[1722329984318,0.00233,66913.0,66912.0,1.94520008]
[1722329984533,0.00233,66913.0,66912.0,1.82099807]
[1722329984753,0.00233,66913.0,66912.0,1.45562641]
[1722329984981,0.06513,66913.0,66912.0,1.18079071]
[1722329986150,0.06513,66913.0,66912.0,1.30500409]